bitfinex/quotes_ETHUSD_20230404
["timestamp","ask_amount","ask_price","bid_price","bid_amount"]
[1680630853443,5.7812,1868.4,1867.9,0.92322339]
[1680630854037,5.7812,1868.4,1867.9,0.92323339]
[1680630854218,5.97387,1868.4,1867.9,0.70909339]
[1680630855058,5.97387,1868.4,1867.9,0.92323339]
[1680630855212,5.97387,1868.4,1867.9,0.70909339]
[1680630855551,0.003,1868.4,1868.0,0.07090934]
[1680630855738,4.93667,1868.5,1868.0,0.07090934]
[1680630857911,5.322,1868.5,1867.9,0.70909339]
[1680630858113,5.325,1868.5,1867.9,0.70909339]
[1680630860463,0.003,1868.5,1868.0,8.39502218]
[1680630860609,10.62481309,1868.6,1868.1,1.05362222]
[1680630861959,10.6184,1868.6,1868.1,1.05362222]
[1680630865009,0.003,1868.6,1868.1,1.05362222]
[1680630865327,5.14944,1868.7,1868.1,1.05362222]
[1680630865526,5.15244,1868.7,1868.2,0.10536222]
[1680630866244,5.15244,1868.7,1868.2,0.31946222]
[1680630866429,4.9598,1868.7,1868.2,0.31946222]
[1680630866738,4.9568,1868.7,1868.2,0.31946222]
[1680630867558,5.14944,1868.7,1868.2,0.31946222]
[1680630867715,5.14906719,1868.7,1868.2,0.32546222]
[1680630868270,4.95642719,1868.7,1868.2,0.32546222]
[1680630868469,4.95342719,1868.7,1868.2,0.32546222]
[1680630869403,5.14606719,1868.7,1868.2,0.32546222]
[1680630869633,5.14906719,1868.7,1868.2,0.11136222]
[1680630870038,11.05255292,1868.7,1868.2,0.006]
[1680630870220,11.05255292,1868.7,1868.0,0.006]
[1680630871326,0.19267,1868.5,1868.0,0.006]
[1680630871528,3.1763914,1868.5,1868.0,0.006]
[1680630871799,3.1763914,1868.5,1868.0,0.22013]
[1680630871800,13.8431914,1868.5,1868.0,0.22013]
[1680630871906,13.8461914,1868.5,1868.0,0.22013]
[1680630874447,13.8461914,1868.5,1868.0,0.64839]
[1680630876371,11.08016922,1868.5,1868.0,0.64839]
[1680630876524,10.6698,1868.5,1868.0,1.03518531]
[1680630876922,10.6698,1868.5,1868.0,2.15346937]
[1680630878464,10.6698,1868.5,1868.0,1.72520937]
[1680630879348,10.6698,1868.5,1868.0,1.33841406]
[1680630879349,10.86246,1868.5,1868.0,1.33841406]
[1680630879546,10.86246,1868.5,1868.0,0.006]
[1680630880185,10.86246,1868.5,1868.0,1.33841406]
[1680630880383,10.86246,1868.5,1868.0,1.12428406]
[1680630880704,14.01381218,1868.5,1868.0,0.006]
[1680630880848,0.19269,1868.3,1868.0,0.006]
[1680630883348,0.19269,1868.3,1868.0,0.004]
[1680630883786,0.19269,1868.3,1868.0,0.006]
[1680630884095,0.19269,1868.3,1868.0,0.002]
[1680630887563,0.57806,1868.3,1867.7,2.06768203]
[1680630887793,0.57806,1868.3,1867.7,1.12428406]
[1680630888482,3.34408218,1868.3,1867.7,1.12428406]
[1680630890200,3.34117971,1868.3,1867.7,1.12428406]
[1680630891174,3.34117971,1868.3,1867.7,0.006]
[1680630891476,3.34117971,1868.3,1867.7,0.34346397]
[1680630893199,3.34117971,1868.3,1867.7,0.004]
[1680630893378,3.34117971,1868.3,1867.7,0.002]
[1680630893579,3.34117971,1868.3,1867.6,1.12428406]
[1680630894889,3.34117971,1868.3,1867.6,0.006]
[1680630895191,3.34117971,1868.3,1867.6,0.69983641]
[1680630895506,10.624,1868.2,1867.6,0.69983641]
[1680630895666,0.19271,1868.1,1867.6,0.69983641]
[1680630899294,0.57812,1868.1,1867.6,0.69983641]
[1680630900273,0.19271,1868.1,1867.6,0.006]
[1680630902987,0.19271,1868.1,1867.6,0.22017]
[1680630903300,11.65839,1868.2,1867.6,0.22017]
[1680630903502,14.42441218,1868.2,1867.6,0.22017]
[1680630903805,16.14345562,1868.2,1867.6,0.22017]
[1680630904114,0.19271,1868.1,1867.6,0.22017]
[1680630905085,15.95076562,1868.2,1867.6,0.22017]
[1680630905979,11.273,1868.2,1867.6,0.22017]
[1680630906178,11.273,1868.2,1867.6,0.64852]
[1680630906585,11.46569,1868.2,1867.6,0.64852]
[1680630907432,10.627,1868.2,1867.6,2.41080406]
[1680630910296,10.627,1868.2,1867.6,1.29252]
[1680630910696,0.003,1868.2,1867.8,0.21414]
[1680630910882,0.15679602,1868.3,1867.8,0.21414]
[1680630911087,0.34948602,1868.3,1867.7,0.777722]
[1680630911290,4.1468782,1868.3,1867.7,0.135252]
[1680630911599,4.1468782,1868.3,1867.7,0.006]
[1680630912413,2.76602218,1868.2,1867.7,0.006]
[1680630912589,2.95872218,1868.2,1867.7,0.006]
[1680630912928,2.95872218,1868.2,1867.7,0.22016]
[1680630913397,2.95872218,1868.2,1867.7,0.006]
[1680630913601,2.76602218,1868.2,1867.7,0.006]
[1680630913787,2.76602218,1868.2,1867.7,0.22016]
[1680630916306,7.85152218,1868.2,1867.7,0.22016]
[1680630916620,7.66182218,1868.2,1867.7,0.22016]
[1680630917478,7.66182218,1868.2,1867.7,0.39683941]
[1680630917681,4.8958,1868.2,1867.7,0.18267941]
[1680630917887,5.0855,1868.2,1867.7,0.18267941]
[1680630918087,5.0885,1868.2,1867.7,0.18267941]
[1680630920219,5.70267351,1868.2,1867.7,0.18267941]
[1680630920383,8.86049878,1868.2,1867.6,1.11828406]
[1680630920721,8.46869569,1868.2,1867.6,1.33845406]
[1680630920922,8.46869569,1868.2,1867.6,2.10740803]
[1680630922930,8.46869569,1868.2,1867.6,3.49959366]
[1680630925025,8.46869569,1868.2,1867.7,1.11828406]
[1680630925230,8.46869569,1868.2,1867.7,1.12428406]
[1680630925632,8.46869569,1868.2,1867.7,0.22016]
[1680630925835,8.46869569,1868.2,1867.7,0.006]
[1680630926136,8.46869569,1868.2,1867.7,1.12428406]
[1680630926431,8.46869569,1868.2,1867.7,0.006]
[1680630926935,8.46869569,1868.2,1867.7,1.12428406]
[1680630927435,8.46869569,1868.2,1867.7,0.006]
[1680630928135,0.84686957,1868.1,1867.7,1.12428406]
[1680630928352,1.03957957,1868.1,1867.7,0.006]
[1680630929059,1.03957957,1868.1,1867.7,1.12428406]
[1680630929860,4.19101175,1868.1,1867.7,1.12428406]
[1680630930016,0.61182118,1868.0,1867.7,0.006]
[1680630930950,0.41910118,1868.0,1867.7,1.12428406]
[1680630931247,3.80860175,1868.1,1867.7,1.12428406]
[1680630931426,3.80560175,1868.1,1867.7,1.12428406]
[1680630931816,3.82746683,1868.1,1867.7,1.12428406]
[1680630933577,3.14876886,1868.0,1867.7,1.12428406]
[1680630933782,3.79476886,1868.0,1867.7,1.12428406]
[1680630934353,1.02874668,1868.0,1867.7,1.12428406]
[1680630934558,0.646,1868.0,1867.7,1.12428406]
[1680630936546,0.646,1868.0,1867.7,1.33844406]
[1680630936752,0.86873465,1868.1,1867.7,1.12428406]
[1680630936928,3.63475683,1868.1,1867.7,1.12428406]
[1680630938456,3.82746683,1868.1,1867.7,1.12428406]
[1680630941057,3.82746683,1868.1,1867.7,0.006]
[1680630941224,3.82746683,1868.1,1867.7,1.12428406]
[1680630941626,3.82746683,1868.1,1867.7,0.006]
[1680630941859,3.82746683,1868.1,1867.7,1.12428406]
[1680630942877,3.82746683,1868.1,1867.7,0.006]
[1680630943057,0.38274668,1868.0,1867.7,0.006]
[1680630943466,0.57546668,1868.0,1867.7,0.006]
[1680630943666,0.19272,1868.0,1867.7,0.006]
[1680630943852,0.19272,1868.0,1867.7,0.004]
[1680630944049,3.82746683,1868.1,1867.7,0.004]
[1680630944251,3.82746683,1868.1,1867.7,0.002]
[1680630945541,2.78788726,1868.1,1867.7,1.11828406]
[1680630945884,2.98058726,1868.1,1867.7,1.12428406]
[1680630946080,2.98058726,1868.1,1867.7,0.006]
[1680630946237,2.98058726,1868.1,1867.7,0.002]
[1680630946439,2.98058726,1868.1,1867.6,1.33845406]
[1680630946635,2.98058726,1868.1,1867.6,1.45018503]
[1680630950288,0.21456508,1868.1,1867.7,1.11828406]
[1680630950588,0.21456508,1868.1,1867.7,1.12428406]
[1680630950941,0.21456508,1868.1,1867.7,0.006]
[1680630951193,0.21456508,1868.1,1867.6,6.22348503]
[1680630951492,0.21456508,1868.1,1867.7,0.6223485]
[1680630951658,0.21456508,1868.1,1867.7,0.6283485]
[1680630952196,0.21456508,1868.1,1867.7,0.6223485]
[1680630952492,0.21456508,1868.1,1867.7,0.6283485]
[1680630952989,2.98058726,1868.1,1867.7,0.006]
[1680630954092,3.36599726,1868.1,1867.7,0.006]
[1680630959117,2.98058726,1868.1,1867.7,0.006]
[1680630961507,0.1927,1868.1,1867.7,0.006]
[1680630961672,0.1927,1868.1,1867.7,0.59575841]
[1680630966575,4.8958,1868.2,1867.7,0.59575841]
[1680630966739,5.0855,1868.2,1867.7,1.71404247]
[1680630966934,5.0885,1868.2,1867.7,1.71404247]
[1680630967174,5.0885,1868.2,1867.8,0.17140425]
[1680630967175,0.003,1868.2,1867.8,0.17140425]
[1680630967316,0.1927,1868.2,1867.8,0.17140425]
[1680630967846,0.003,1868.3,1867.9,0.644]
[1680630968052,14.6302,1868.4,1868.3,0.00222115]
[1680630970264,20.10334573,1868.4,1868.3,0.00222115]
[1680630970638,20.93006951,1868.4,1868.3,0.00222115]
[1680630970965,22.65205406,1868.4,1868.3,0.00222115]
[1680630971468,22.38676224,1868.4,1868.3,0.00222115]
[1680630971764,22.33676224,1868.4,1868.3,0.00222115]
[1680630972064,23.16348602,1868.4,1868.3,0.00222115]
[1680630972295,22.60205406,1868.4,1868.3,0.00222115]
[1680630973059,0.00139035,1868.3,1867.7,0.006]
[1680630973370,0.57809,1868.2,1867.7,0.74947697]
[1680630973569,0.58450309,1868.2,1867.7,0.74947697]
[1680630974367,0.58450309,1868.2,1867.6,6.53858406]
[1680630974554,0.58450309,1868.2,1867.6,6.53658406]
[1680630975375,3.35052527,1868.2,1867.6,6.53658406]
[1680630975554,2.76602218,1868.1,1867.9,0.231]
[1680630975879,0.46931222,1868.0,1867.9,0.231]
[1680630976773,0.47572531,1868.0,1867.9,0.231]
[1680630977512,0.27660222,1868.0,1867.9,0.231]
[1680630978060,0.46931222,1868.0,1867.9,0.231]
[1680630978478,0.27660222,1868.0,1867.9,0.231]
[1680630979023,0.46931222,1868.0,1867.5,1.21828406]
[1680630979195,0.19271,1868.0,1867.6,0.14324641]
[1680630979396,14.74332309,1868.1,1867.6,0.14324641]
[1680630979813,4.85662309,1868.1,1867.6,0.14324641]
[1680630980012,4.85362309,1868.1,1867.6,0.14324641]
[1680630981288,5.23903309,1868.1,1867.6,0.14324641]
[1680630981489,5.24203309,1868.1,1867.6,0.14324641]
[1680630983639,5.82456874,1868.1,1867.6,0.14324641]
[1680630984498,5.43915874,1868.1,1867.6,0.14324641]
[1680630985257,0.00941309,1868.1,1867.7,8.39502218]
[1680630985461,0.00139035,1868.3,1868.0,1.282]
[1680630985756,0.00139035,1868.3,1868.1,0.644]
[1680630985903,4.77070344,1868.6,1868.2,0.0644]
[1680630986101,4.96035344,1868.6,1868.2,0.0644]
[1680630986338,4.76770344,1868.6,1868.2,0.0644]
[1680630987010,4.96035344,1868.6,1868.2,0.0644]
[1680630987739,4.76770344,1868.6,1868.2,0.0644]
[1680630988506,4.96035344,1868.6,1868.2,0.0644]
[1680630988713,4.76770344,1868.6,1868.2,0.0644]
[1680630989145,4.96036344,1868.6,1868.2,0.0644]
[1680630991603,4.76770344,1868.6,1868.2,0.0644]
[1680630991808,4.96035344,1868.6,1868.2,0.0644]
[1680630992323,4.96035344,1868.6,1868.1,0.006]
[1680630997227,0.003,1868.7,1868.2,1.07053]
[1680630997608,0.09813326,1868.8,1868.5,0.646]
[1680630997609,0.08913326,1868.8,1868.5,0.646]
[1680630997773,0.08913326,1868.8,1868.6,0.0646]
[1680631000355,0.08913326,1868.8,1868.6,0.27866]
[1680631000554,0.08913326,1868.8,1868.7,0.641]
[1680631001659,0.08913326,1868.8,1868.7,0.643]
[1680631001862,0.08913326,1868.8,1868.7,0.645]
[1680631002030,0.08913326,1868.8,1868.7,1.278816]
[1680631002232,0.08913326,1868.8,1868.7,1.774816]
[1680631002945,0.08913326,1868.8,1868.7,0.639816]
[1680631003136,0.08913326,1868.8,1868.7,0.864816]
[1680631009653,0.08580866,1868.8,1868.7,0.858816]
[1680631016258,0.08580866,1868.8,1868.7,0.225]
[1680631031392,0.08580866,1868.8,1868.7,0.43905]
[1680631032036,0.08344461,1868.8,1868.7,0.43905]
[1680631032903,0.08344461,1868.8,1868.7,3.63317218]
[1680631033106,0.08344461,1868.8,1868.7,4.77817218]
[1680631033331,0.08344461,1868.8,1868.7,6.3818604]
[1680631034135,0.08344461,1868.8,1868.7,12.0108604]
[1680631034300,0.08344461,1868.8,1868.7,12.0128604]
[1680631034915,0.08344461,1868.8,1868.7,12.2448604]
[1680631036257,0.08344461,1868.8,1868.7,12.0128604]
[1680631036403,0.08344461,1868.8,1868.7,12.0148604]
[1680631036598,0.08344461,1868.8,1868.7,12.0128604]
[1680631037106,0.08344461,1868.8,1868.7,12.0148604]
[1680631037303,0.08344461,1868.8,1868.7,12.0128604]
[1680631037503,0.08344461,1868.8,1868.7,12.0148604]
[1680631037731,0.08344461,1868.8,1868.7,12.0128604]
[1680631038249,0.08344461,1868.8,1868.7,6.3838604]
[1680631038417,0.08344461,1868.8,1868.7,6.3858604]
[1680631038835,0.08344461,1868.8,1868.7,6.3838604]
[1680631039035,0.08344461,1868.8,1868.7,6.3858604]
[1680631039719,0.08344461,1868.8,1868.7,12.2428604]
[1680631040055,0.08344461,1868.8,1868.7,12.2448604]
[1680631040608,0.1,1869.6,1868.9,7.53756154]
[1680631040808,0.1,1869.6,1869.5,1.137]
[1680631041010,0.103,1869.7,1869.5,1.137]
[1680631041011,0.05,1869.7,1869.5,10.17390218]
[1680631041243,0.05,1869.7,1869.6,8.39502218]
[1680631041457,0.05,1869.7,1869.6,9.89264218]
[1680631041785,0.05,1869.7,1869.6,10.9964064]
[1680631042125,0.05,1869.7,1869.6,11.2264064]
[1680631043621,0.05,1869.7,1869.6,13.5124064]
[1680631044786,0.05,1869.7,1869.6,12.3774064]
[1680631046380,0.05,1869.7,1869.6,12.90479772]
[1680631048345,0.05,1869.7,1869.6,14.04879772]
[1680631050678,0.05,1869.7,1869.6,12.90379772]
[1680631053287,0.1,1869.8,1869.7,0.59317041]
[1680631053491,0.1,1869.8,1869.7,20.97075259]
[1680631053794,0.1,1869.9,1869.7,23.97075259]
[1680631053992,0.1,1869.9,1869.8,11.26749218]
[1680631054196,0.1,1869.9,1869.8,12.49197822]
[1680631054353,0.1,1869.9,1869.8,8.35095604]
[1680631054696,0.1,1869.9,1869.8,11.11697822]
[1680631055744,0.1,1869.9,1869.8,11.34697822]
[1680631056242,0.1,1869.9,1869.8,10.49127822]
[1680631056475,0.1,1869.9,1869.8,4.22050822]
[1680631056656,0.1,1869.9,1869.8,4.43442822]
[1680631056986,0.1,1869.9,1869.8,1.43840604]
[1680631057287,0.1,1869.9,1869.8,0.21392]
[1680631057590,0.1,1869.9,1869.7,0.21392]
[1680631057768,0.1,1869.9,1869.8,8.39502218]
[1680631057977,0.1,1869.9,1869.8,8.60894218]
[1680631058339,0.1,1869.9,1869.8,8.83894218]
[1680631058778,0.1,1869.9,1869.8,9.5519034]
[1680631058960,0.1,1869.9,1869.8,9.3219034]
[1680631059157,0.1,1869.9,1869.8,9.5358234]
[1680631059578,0.1,1869.9,1869.8,11.3386734]
[1680631059779,0.1,1869.9,1869.8,20.8312734]
[1680631063004,0.1,1869.9,1869.8,19.6862734]
[1680631074643,0.09661493,1869.9,1869.8,19.6862734]
[1680631076801,0.09661493,1869.9,1869.8,20.8312734]
[1680631076945,0.09661493,1869.9,1869.8,23.8312734]
[1680631080490,0.09661493,1869.9,1869.8,23.7812734]
[1680631084723,0.09661493,1869.9,1869.8,16.87025122]
[1680631084907,0.09661493,1869.9,1869.8,16.64025122]
[1680631085108,0.09661493,1869.9,1869.8,16.54896946]
[1680631085353,0.09661493,1869.9,1869.8,18.47939218]
[1680631085838,0.09661493,1869.9,1869.8,19.31499164]
[1680631086345,0.09661493,1869.9,1869.8,18.47939218]
[1680631086832,0.09661493,1869.9,1869.8,18.70939218]
[1680631087652,0.09661493,1869.9,1869.8,20.76186434]
[1680631088076,1.23261493,1869.9,1869.7,0.95959946]
[1680631088386,1.23261493,1869.9,1869.5,8.14179837]
[1680631088387,1.145,1869.8,1869.5,0.002]
[1680631088588,1.145,1869.8,1869.4,0.83559946]
[1680631088589,1.26946149,1869.8,1869.4,0.83559946]
[1680631088734,1.27846149,1869.8,1869.4,3.81558164]
[1680631089183,1.145,1869.7,1869.5,0.132]
[1680631089393,1.27284615,1869.7,1869.5,0.132]
[1680631090439,0.009,1869.8,1869.5,8.74097218]
[1680631090685,0.009,1869.8,1869.5,9.16889218]
[1680631090854,0.009,1869.8,1869.5,8.74097218]
[1680631092186,0.009,1869.8,1869.5,9.16889218]
[1680631093190,0.009,1869.8,1869.5,8.74097218]
[1680631094344,0.009,1869.8,1869.5,9.16889218]
[1680631094993,0.009,1869.8,1869.6,8.39502218]
[1680631095156,0.009,1869.8,1869.7,6.2708]
[1680631095357,0.009,1869.8,1869.7,9.03682218]
[1680631095684,0.009,1869.8,1869.7,9.16982218]
[1680631096446,0.10561493,1869.9,1869.7,9.16982218]
[1680631096787,0.10561493,1869.9,1869.7,10.17056434]
[1680631097941,0.10561493,1869.9,1869.8,9.03679218]
[1680631098383,0.09661493,1869.9,1869.8,9.03679218]
[1680631099638,0.09661493,1869.9,1869.8,9.26679218]
[1680631100425,0.09661493,1869.9,1869.8,10.10239164]
[1680631100627,0.09661493,1869.9,1869.8,11.39533997]
[1680631100838,0.09661493,1869.9,1869.8,15.96193997]
[1680631101426,0.09661493,1869.9,1869.8,17.10693997]
[1680631101596,0.09661493,1869.9,1869.8,25.29393997]
[1680631101801,0.09661493,1869.9,1869.8,26.40807258]
[1680631102200,0.09661493,1869.9,1869.8,25.26307258]
[1680631102401,0.09661493,1869.9,1869.8,24.14893997]
[1680631102717,0.09661493,1869.9,1869.8,25.26307258]
[1680631103539,0.09661493,1869.9,1869.8,9.0714504]
[1680631103728,0.09661493,1869.9,1869.8,9.03679218]
[1680631103935,0.09661493,1869.9,1869.8,8.39502218]
[1680631104500,0.09661493,1869.9,1869.7,0.133]
[1680631104730,0.09661493,1869.9,1869.7,2.89702218]
[1680631105130,0.09354676,1869.9,1869.7,2.89702218]
[1680631105600,0.09354676,1869.9,1869.7,3.11095218]
[1680631107337,0.09354676,1869.9,1869.7,4.11209634]
[1680631108440,0.09354676,1869.9,1869.8,8.62502218]
[1680631108748,0.09354676,1869.9,1869.8,8.83894218]
[1680631109245,0.09354676,1869.9,1869.8,9.26679218]
[1680631114158,0.09354676,1869.9,1869.8,8.83894218]
[1680631114737,0.09354676,1869.9,1869.8,2.99602218]
[1680631114933,0.09354676,1869.9,1869.8,2.76602218]
[1680631115434,0.09354676,1869.9,1869.7,0.139]
[1680631115641,0.09354676,1869.9,1869.7,2.89702218]
[1680631116746,0.09354676,1869.9,1869.7,3.11095218]
[1680631117394,0.09354676,1869.9,1869.7,2.89702218]
[1680631118298,0.09354676,1869.9,1869.7,3.11095218]
[1680631118782,0.09354676,1869.9,1869.7,2.89702218]
[1680631118982,0.09354676,1869.9,1869.7,3.11095218]
[1680631119684,0.09354676,1869.9,1869.7,2.89702218]
[1680631120187,0.09354676,1869.9,1869.7,3.11095218]
[1680631120374,0.09354676,1869.9,1869.7,2.89702218]
[1680631121087,0.09354676,1869.9,1869.7,3.11095218]
[1680631121801,0.09354676,1869.9,1869.7,8.73995218]
[1680631122142,0.09354676,1869.9,1869.7,9.74109634]
[1680631123257,0.09354676,1869.9,1869.7,8.73995218]
[1680631126198,0.09057704,1869.9,1869.7,8.73995218]
[1680631130226,0.09057704,1869.9,1869.7,8.73995218]
[1680631132539,0.09057704,1869.9,1869.7,9.57555164]
[1680631132723,0.09057704,1869.9,1869.8,9.35257734]
[1680631132915,0.09057704,1869.9,1869.8,6.80047516]
[1680631133259,0.09057704,1869.9,1869.8,5.629]
[1680631133401,0.09057704,1869.9,1869.8,8.39502218]
[1680631134802,0.09057704,1869.9,1869.7,0.97459946]
[1680631134984,0.09057704,1869.9,1869.7,3.73262164]
[1680631136746,0.09057704,1869.9,1869.7,0.131]
[1680631137063,0.41665474,1869.9,1869.7,0.131]
[1680631137363,1.145,1869.8,1869.7,0.131]
[1680631137569,1.33753,1869.8,1869.7,0.131]
[1680631137768,1.72259,1869.8,1869.7,0.131]
[1680631138314,1.72259,1869.8,1869.4,0.83559946]
[1680631138653,1.145,1869.6,1869.4,0.83559946]
[1680631138830,1.33755,1869.6,1869.5,0.133]
[1680631139212,2.47455,1869.6,1869.5,0.133]
[1680631139445,2.85965,1869.6,1869.5,0.133]
[1680631139622,3.9833509,1869.6,1869.5,0.133]
[1680631139827,3.9923509,1869.6,1868.9,30.77159946]
[1680631140025,1.136,1869.2,1868.9,0.83559946]
[1680631140472,1.71378,1869.2,1868.9,0.83559946]
[1680631140776,1.71378,1869.2,1868.8,1.94973207]
[1680631140932,1.32859,1869.2,1868.8,0.83559946]
[1680631141117,0.02186508,1869.1,1868.8,0.83559946]
[1680631141436,0.59968508,1869.1,1868.8,0.83559946]
[1680631141647,0.38804359,1869.1,1868.8,0.83559946]
[1680631142023,1.34043359,1869.1,1868.8,0.83559946]
[1680631142228,1.16686508,1869.1,1868.8,0.83559946]
[1680631142444,1.16686508,1869.1,1868.8,1.04962946]
[1680631142847,1.16686508,1869.1,1868.8,0.83559946]
[1680631143236,1.16686508,1869.1,1868.8,1.04962946]
[1680631143437,1.145,1869.3,1868.8,1.04962946]
[1680631143850,1.145,1869.3,1868.8,2.16376207]
[1680631144419,1.145,1869.3,1868.9,0.83559946]
[1680631144873,1.145,1869.3,1868.8,2.16376207]
[1680631145558,1.145,1869.3,1868.8,1.04962946]
[1680631145761,1.64798418,1869.3,1868.7,8.01466907]
[1680631145926,1.64798418,1869.3,1868.7,10.77869125]
[1680631146683,1.64798418,1869.3,1868.7,4.03555864]
[1680631146875,1.64798418,1869.3,1868.7,3.81950864]
[1680631147101,1.45540418,1869.3,1868.7,5.14769125]
[1680631147283,1.45540418,1869.3,1868.7,5.10515018]
[1680631147430,1.64798418,1869.3,1868.7,5.10515018]
[1680631147629,1.45540418,1869.3,1868.7,5.10515018]
[1680631147901,1.45540418,1869.3,1868.7,6.21928279]
[1680631148175,1.45540418,1869.3,1868.8,0.21403]
[1680631148176,1.16686508,1869.3,1868.8,0.21403]
[1680631148532,1.16432306,1869.3,1868.8,0.22003]
[1680631151576,1.16432306,1869.3,1868.8,0.21803]
[1680631151787,16.0365,1869.5,1868.9,2.76602218]
[1680631151933,16.0365,1869.5,1869.0,0.214]
[1680631152128,14.8915,1869.5,1869.0,0.214]
[1680631152660,14.8915,1869.5,1869.0,9.04305218]
[1680631152829,14.8915,1869.5,1869.1,3.6703274]
[1680631153181,9.9043,1869.5,1869.2,0.21399]
[1680631153393,9.9043,1869.5,1869.2,0.21599]
[1680631153536,9.9043,1869.5,1869.2,0.64798]
[1680631153738,9.9043,1869.5,1869.3,0.278768]
[1680631153937,9.9043,1869.5,1869.3,0.064798]
[1680631154168,9.9043,1869.5,1869.3,0.278778]
[1680631154367,9.9043,1869.5,1869.3,0.064798]
[1680631154581,9.9043,1869.5,1869.3,0.278778]
[1680631154883,9.9043,1869.5,1869.3,0.064798]
[1680631155035,9.9043,1869.5,1869.3,0.278778]
[1680631155386,9.9043,1869.5,1869.3,0.064798]
[1680631155539,9.9043,1869.5,1869.2,0.21998]
[1680631155761,9.9043,1869.5,1869.2,0.006]
[1680631156040,9.9043,1869.5,1869.2,0.21998]
[1680631158036,9.9043,1869.5,1869.2,0.006]
[1680631158638,10.09686,1869.5,1869.1,0.006]
[1680631158883,10.89473,1869.5,1869.0,0.22001]
[1680631159238,11.08729,1869.5,1869.0,0.006]
[1680631160791,1.108729,1869.4,1869.0,0.006]
[1680631161016,2.253729,1869.4,1869.0,0.22001]
[1680631161491,2.253729,1869.4,1869.0,0.64804]
[1680631162035,1.108729,1869.4,1869.0,0.64804]
[1680631162469,11.0493,1869.5,1869.0,0.64804]
[1680631162673,11.0493,1869.5,1869.1,2.76602218]
[1680631162674,9.9043,1869.5,1869.1,2.76602218]
[1680631162871,0.003,1869.5,1869.2,0.64197]
[1680631163073,17.2135,1869.7,1869.2,0.64197]
[1680631163273,17.2135,1869.7,1869.2,0.98336922]
[1680631163985,17.2135,1869.7,1869.2,0.64197]
[1680631164977,17.2135,1869.7,1869.2,0.21399]
[1680631165181,17.40604,1869.7,1869.2,0.21399]
[1680631165349,17.40604,1869.7,1869.1,3.41402218]
[1680631165551,19.16583051,1869.7,1869.1,2.98601218]
[1680631166173,19.17483051,1869.7,1869.1,2.98001218]
[1680631166398,19.55091051,1869.7,1869.1,0.006]
[1680631166605,1.91748305,1869.6,1869.0,1.05560946]
[1680631166792,2.11004305,1869.6,1869.0,3.82163164]
[1680631167374,2.13190813,1869.6,1869.0,3.82163164]
[1680631167581,2.13190813,1869.6,1869.0,2.11089089]
[1680631167789,2.13190813,1869.6,1869.0,1.05560946]
[1680631168010,1.93934813,1869.6,1869.0,1.48363946]
[1680631168867,1.93934813,1869.6,1869.0,1.05560946]
[1680631168868,2.13189813,1869.6,1869.0,1.05560946]
[1680631169067,1.93934813,1869.6,1869.0,1.05560946]
[1680631169402,0.19393481,1869.5,1869.0,1.48363946]
[1680631170113,1.33893481,1869.5,1869.0,1.05560946]
[1680631170477,1.33893481,1869.5,1869.0,1.48363946]
[1680631172101,0.19393481,1869.5,1869.0,1.48363946]
[1680631173286,0.19068987,1869.5,1869.0,1.48363946]
[1680631174937,0.19068987,1869.5,1869.0,1.05560946]
[1680631175504,0.38324987,1869.5,1869.0,0.84159946]
[1680631175703,0.38324987,1869.5,1869.0,0.006]
[1680631175905,0.38324987,1869.5,1869.0,0.004]
[1680631176128,0.38324987,1869.5,1869.0,0.83959946]
[1680631176327,1.145,1869.4,1869.0,0.84159946]
[1680631176637,0.1145,1869.3,1868.9,1.95573207]
[1680631176841,1.33757,1869.4,1868.9,0.84159946]
[1680631177344,1.33757,1869.4,1868.9,1.95573207]
[1680631177653,1.145,1869.4,1868.9,2.76778154]
[1680631177811,1.145,1869.4,1868.9,2.98180154]
[1680631178944,1.145,1869.4,1869.0,0.83559946]
[1680631180749,1.145,1869.4,1869.0,1.94973207]
[1680631181098,1.145,1869.4,1869.1,0.83559946]
[1680631182142,1.32857,1869.5,1869.1,0.83559946]
[1680631183550,1.32856,1869.5,1869.1,0.83559946]
[1680631183740,1.136,1869.5,1869.1,0.83559946]
[1680631183916,1.30955351,1869.5,1869.1,0.83559946]
[1680631184248,1.50211351,1869.5,1869.1,0.83559946]
[1680631185351,1.50211351,1869.5,1869.1,1.94973207]
[1680631185949,1.50211351,1869.5,1869.2,0.83559946]
[1680631186365,1.50211351,1869.5,1869.1,1.94973207]
[1680631186746,1.50211351,1869.5,1869.2,0.83559946]
[1680631187069,17.2225,1869.7,1869.2,1.04958946]
[1680631188432,17.2225,1869.7,1869.2,2.16372207]
[1680631188861,17.2225,1869.7,1869.2,2.59171207]
[1680631189297,17.2225,1869.7,1869.2,2.16372207]
[1680631189597,17.41504,1869.7,1869.3,0.83559946]
[1680631190321,17.41504,1869.7,1869.2,1.94973207]
[1680631191604,17.41504,1869.7,1869.3,0.83559946]
[1680631191821,18.02381094,1869.7,1869.3,0.83559946]
[1680631193996,17.83127094,1869.7,1869.3,0.83559946]
[1680631194199,16.0775,1869.7,1869.3,0.83559946]
[1680631195879,0.003,1869.7,1869.4,0.83559946]
[1680631196199,0.17,1869.8,1869.7,0.00377225]
[1680631196798,1.27268,1869.8,1869.7,0.00377225]
[1680631197002,0.17,1869.8,1869.7,0.21770225]
[1680631197218,0.17,1869.8,1869.7,0.64557225]
[1680631197667,0.17,1869.8,1869.7,4.24719389]
[1680631200166,0.17,1869.8,1869.7,4.25319389]
[1680631200419,0.17,1869.8,1869.7,6.39141154]
[1680631201406,0.16749649,1869.8,1869.7,6.38541154]
[1680631202179,0.16749649,1869.8,1869.7,12.24441154]
[1680631202419,0.16749649,1869.8,1869.7,2.1419899]
[1680631202706,0.16749649,1869.8,1869.7,2.7837899]
[1680631204920,0.16749649,1869.8,1869.7,5.54981208]
[1680631205074,0.16749649,1869.8,1869.7,6.40556208]
[1680631208891,0.16749649,1869.8,1869.7,5.54981208]
[1680631209597,0.16749649,1869.8,1869.7,4.90801208]
[1680631209986,0.16749649,1869.8,1869.7,2.1419899]
[1680631210203,0.16749649,1869.8,1869.7,0.00377225]
[1680631212905,0.18936157,1869.8,1869.7,0.00377225]
[1680631213218,0.38189157,1869.8,1869.7,0.00377225]